fUSD/lending_fUSD_20250823
["ID","MTS","AMOUNT","RATE_DAILY","PERIOD"]
[381000313,1755931178598,-53.36380352,0.00010345,2]
[381000314,1755931194346,-135.53619648,0.00010345,2]
[381000315,1755931194386,-119.55031858,0.00010345,2]
[381000316,1755931202235,-162.23295232,0.00010345,2]
[381000317,1755931210993,-18.2167291,0.00010345,2]
[381000318,1755931211024,-8.74450219,0.00010345,2]
[381000319,1755931211067,-381.87820935,0.00010345,2]
[381000320,1755931218387,-135.80067193,0.00010384,2]
[381000321,1755931218412,-164.19932807,0.00010384,2]
[381000322,1755931226982,-6.49575186,0.00010345,2]
[381000323,1755931227007,-429.30492007,0.00010345,2]
[381000324,1755931243124,-435.80067193,0.00010383,2]
[381000325,1755931250823,-64.19932807,0.00010383,2]
[381000326,1755931250856,-307.40201579,0.00010383,2]
[381000327,1755931258863,-70.69507993,0.00010383,2]
[381000328,1755931258912,-294.41051207,0.00010383,2]
[381000329,1755931266453,-96.21219947,0.00010383,2]
[381000330,1755931266558,-243.37627299,0.00010383,2]
[381000331,1755931275023,-192.42439894,0.00010383,2]
[381000332,1755931275070,-50.95187405,0.00010383,2]
[381000333,1755931282724,-69.97324173,0.00010383,2]
[381000334,1755931282751,-250.67622808,0.00010383,2]
[381000335,1755931290398,-390.62271154,0.00010383,2]
[381000336,1755931298173,-109.37728846,0.00010383,2]
[381000337,1755931298227,-83.99405212,0.00010383,2]
[381000338,1755931306882,-248.06458532,0.00010383,2]
[381000339,1755931314830,-160.89762169,0.00010383,2]
[381000340,1755931314854,-7.04374087,0.00010383,2]
[381000341,1755931323106,-89.42680271,0.00010383,2]
[381000342,1755931323129,-282.17454115,0.00010383,2]
[381000343,1755931330293,-461.02814657,0.00010383,2]
[381000344,1755931338725,-38.97185343,0.00010383,2]
[381000345,1755931338756,-101.83901663,0.00010383,2]
[381000346,1755931338849,-179.40640645,0.00010383,2]
[381000347,1755931346625,-158.27951753,0.00010383,2]
[381000348,1755931346685,-144.46911151,0.00010383,2]
[381000349,1755931355262,-267.41430741,0.00010382,2]
[381000350,1755931362660,-33.79106283,0.00010382,2]
[381000351,1755931362683,-198.79462976,0.00010382,2]
[381000352,1755931370984,-500.0,0.00010382,2]
[381000353,1755931378110,-500.0,0.00010382,2]
[381000354,1755931386169,-200.0,0.00010381,2]
[381000355,1755931386191,-100.0,0.00010381,2]
[381000356,1755931394666,-178.91454026,0.00010382,2]
[381000357,1755931394699,-142.17091948,0.00010382,2]
[381000358,1755931402663,-64.07382376,0.00010382,2]
[381000359,1755931402719,-293.75525676,0.00010382,2]
[381000360,1755931410441,-267.41430741,0.00010382,2]
[381000361,1755931410494,-50.75986447,0.00010382,2]
[381000362,1755931418244,-135.28504343,0.00010382,2]
[381000363,1755931418272,-229.42991314,0.00010382,2]
[381000364,1755931427200,-500.0,0.00010382,2]
[381000365,1755931435481,-500.0,0.00010382,2]
[381000366,1755931442997,-130.38352384,0.00010382,2]
[381000367,1755931443045,-239.23295232,0.00010382,2]
[381000368,1755931450214,-107.04379,0.00010382,2]
[381000369,1755931450237,-153.72325768,0.00010382,2]
[381000370,1755931458194,-78.09709572,0.00010382,2]
[381000371,1755931458218,-343.80580856,0.00010382,2]
[381000372,1755931467321,-500.0,0.00010382,2]
[381000373,1755931474962,-500.0,0.00010382,2]
[381000374,1755931482382,-171.16101575,0.00010381,2]
[381000375,1755931491434,-232.06799819,0.00010381,2]
[381000376,1755931498842,-72.65293045,0.00010381,2]
[381000377,1755931499431,-24.11805561,0.00010381,2]
[381000378,1755931506578,-369.61647616,0.0001038,2]
[381000379,1755931513974,-337.76704768,0.0001038,2]
[381000380,1755931522799,-492.61647616,0.0001038,2]
[381000381,1755931522828,-300.0,0.0001038,2]
[381000382,1755931522856,-500.0,0.00010381,2]
[381000383,1755931522956,-459.05270768,0.00010381,2]
[381000384,1755931530685,-40.94729232,0.00010381,2]
[381000385,1755931530903,-105.5582565,0.00010381,2]
[381000386,1755931539036,-5.5582565,0.00010381,2]
[381000387,1755931539150,-388.883487,0.00010381,2]
[381000388,1755931547043,-296.24037904,0.00010381,2]
[381000389,1755931556647,-162.45692199,0.00010381,2]
[381000390,1755931563621,-163.15,0.0001038,2]
[381000391,1755931563703,-136.85,0.0001038,2]
[381000392,1755931570842,-41.30269897,0.00010381,2]
[381000393,1755931570884,-71.77460206,0.00010381,2]
[381000394,1755931578728,-197.69282036,0.00010381,2]
[381000395,1755931587362,-70.54621448,0.00010381,2]
[381000396,1755931587430,-8.90757104,0.00010381,2]
[381000397,1755931595576,-151.0,0.0001038,2]
[381000398,1755931603379,-18.42391651,0.0001038,2]
[381000399,1755931603439,-295.55077098,0.0001038,2]
[381000400,1755931610472,-74.06570518,0.0001038,2]
[381000401,1755931610506,-59.86858964,0.0001038,2]
[381000406,1755931618652,-102.58833235,0.0001038,2]
[381000407,1755931618686,-72.42883982,0.0001038,2]
[381000408,1755931622926,500.0,0.000138,5]
[381000409,1755931625042,1000.0,0.000139,5]
[381000410,1755931626663,-87.98,0.00010379,2]
[381000411,1755931626690,-212.02,0.00010379,2]
[381000412,1755931627756,1500.0,0.000147,5]
[381000413,1755931629353,2000.0,0.000148,5]
[381000414,1755931630709,501.0129899,0.0002876,120]
[381000415,1755931631377,2500.0,0.000149,5]
[381000416,1755931635207,-300.0,0.0001038,2]
[381000417,1755931643185,-127.57116018,0.0001038,2]
[381000418,1755931643332,-144.85767964,0.0001038,2]
[381000419,1755931651224,-44.85767964,0.0001038,2]
[381000420,1755931651247,-310.28464072,0.0001038,2]
[381000421,1755931660349,-181.5315236,0.0001038,2]
[381000422,1755931667407,-200.0,0.0001038,2]
[381000423,1755931675630,-31.5315236,0.0001038,2]
[381000424,1755931675656,-86.9369528,0.0001038,2]
[381000425,1755931683643,-90.04286849,0.0001038,2]
[381000426,1755931683675,-219.91426302,0.0001038,2]
[381000427,1755931692681,-198.89365206,0.0001038,2]
[381000428,1755931693134,-2.21269588,0.0001038,2]
[381000429,1755931700251,-200.0,0.0001038,2]
[381000430,1755931707707,-70.23468717,0.0001038,2]
[381000431,1755931707867,-62.16391683,0.0001038,2]
[381000432,1755931715096,-178.6077352,0.00010379,2]
[381000433,1755931723087,-150.0,0.00010379,2]
[381000434,1755931730716,-150.0,0.00010379,2]
[381000435,1755931738778,-102.9237884,0.00010379,2]
[381000436,1755931738809,-300.0,0.00010379,2]
[381000437,1755931738892,-11401.21004873,0.00010381,2]
[381000438,1755931746843,-531.285,0.00010378,2]
[381000439,1755931746902,-1183.22947447,0.00010381,2]
[381000440,1755931755635,-917.85299595,0.00010381,2]
[381000441,1755931763078,-166.67,0.00010381,2]
[381000442,1755931771408,-162.55,0.00010381,2]
[381000443,1755931778993,-368.275518,0.00010381,2]
[381000444,1755931787036,-175.31,0.00010381,2]
[381000445,1755931795514,-243.43,0.00010381,2]
[381000446,1755931802926,-229.94,0.00010381,2]
[381000447,1755931811817,-189.08751208,0.00010381,2]
[381000448,1755931819706,-199.46708454,0.00010381,2]
[381000449,1755931827773,-598.63557058,0.00010381,2]
[381000456,1755931832138,-595.6389,0.00010381,2]
[381000458,1755931832191,-770.23398605,0.00010381,2]
[381000460,1755931832205,-310.0,0.00010382,2]
[381000462,1755931832220,-250.0,0.00010382,2]
[381000464,1755931832233,-300.0,0.00010382,2]
[381000467,1755931832247,-688.56601395,0.00010448,2]
[381000470,1755931832264,-511.43398605,0.00010448,2]
[381000472,1755931832277,-2955.568,0.00010449,2]
[381000474,1755931832290,-250.0,0.00010569,2]
[381000476,1755931832301,-300.0,0.00010569,2]
[381000478,1755931832313,-2500.0,0.00010642,2]
[381000481,1755931832327,-8706.20469395,0.00010961,2]
[381000487,1755931832404,-1417.63688377,0.00010961,2]
[381000490,1755931832419,-553.30256305,0.00010961,2]
[381000500,1755931832509,-6524.38694963,0.00010961,2]
[381000503,1755931832523,-150.05,0.0001099,2]
[381000505,1755931832536,-213.17,0.00011077,2]
[381000508,1755931832548,-5391.81600769,0.00011126,2]
[381000510,1755931832561,-277.35679052,0.00011126,2]
[381000512,1755931832571,-6559.79517908,0.00011133,2]
[381000514,1755931832582,-5591.31319997,0.00011181,2]
[381000516,1755931832594,-999.99,0.00011181,2]
[381000518,1755931832608,-150.99,0.00011181,2]
[381000521,1755931832625,-420.85277087,0.00011181,2]
[381000523,1755931832637,-906.78354112,0.00011181,2]
[381000524,1755931832654,-8672.35368801,0.00011181,2]
[381000525,1755931832667,-3340.8692539,0.00011236,2]
[381000526,1755931832680,-229.0,0.00011391,2]
[381000527,1755931832694,-300.0,0.00011418,2]
[381000528,1755931832705,-310.0,0.00011419,2]
[381000529,1755931832716,-250.0,0.00011419,2]
[381000530,1755931832729,-2500.0,0.00011419,2]
[381000531,1755931832748,-300.0,0.00011419,2]
[381000532,1755931832760,-310.0,0.00011419,2]
[381000533,1755931832772,-2500.0,0.00011419,2]
[381000534,1755931832784,-300.0,0.00011419,2]
[381000535,1755931832796,-2500.0,0.0001142,2]
[381000536,1755931832808,-150.0,0.0001142,2]
[381000537,1755931832820,-500.0,0.00011433,2]
[381000538,1755931832832,-500.0,0.00011433,2]
[381000539,1755931832843,-322.6107,0.00011433,2]
[381000540,1755931832855,-500.0,0.00011433,2]
[381000541,1755931832867,-312.86391038,0.00011433,2]
[381000542,1755931832879,-500.0,0.00011433,2]
[381000543,1755931832890,-160.0,0.00011433,2]
[381000544,1755931832905,-151.0,0.00011433,2]
[381000545,1755931832916,-721.12765535,0.00011433,2]
[381000546,1755931832928,-151.0,0.00011433,2]
[381000547,1755931832939,-151.0,0.00011433,2]
[381000548,1755931832952,-151.0,0.00011433,2]
[381000549,1755931832964,-151.0,0.00011433,2]
[381000550,1755931832976,-287.08486019,0.00011433,2]
[381000551,1755931832988,-151.0,0.00011433,2]
[381000552,1755931833000,-500.0,0.00011433,2]
[381000553,1755931833012,-500.0,0.00011433,2]
[381000554,1755931833025,-500.0,0.00011433,2]
[381000555,1755931833038,-500.0,0.00011433,2]
[381000556,1755931833050,-500.0,0.00011433,2]
[381000557,1755931833061,-500.0,0.00011433,2]
[381000558,1755931833074,-500.0,0.00011433,2]
[381000559,1755931833085,-500.0,0.00011433,2]
[381000560,1755931833097,-500.0,0.00011433,2]
[381000561,1755931833110,-500.0,0.00011433,2]
[381000562,1755931833121,-500.0,0.00011433,2]
[381000563,1755931833133,-406.33660455,0.00011447,2]
[381000564,1755931833146,-722.0,0.0001146,2]
[381000565,1755931833158,-1680.0,0.00011493,2]
[381000566,1755931833170,-2935.49694793,0.00011541,2]
[381000567,1755931833185,-855.9,0.00011541,2]
[381000568,1755931833199,-3472.54071636,0.00011541,2]
[381000569,1755931833213,-2013.78174631,0.00011541,2]
[381000570,1755931833227,-1222.97041126,0.00011541,2]
[381000571,1755931833264,-5999.16446895,0.00011541,2]
[381000572,1755931833337,-701.67679959,0.00011541,2]
[381000573,1755931833350,-1008.18554672,0.00011604,2]
[381000574,1755931833362,-250.0,0.00011614,2]
[381000575,1755931833374,-311.98931318,0.00011616,2]
[381000576,1755931833387,-303.86,0.00011616,2]
[381000577,1755931833398,-166.08,0.00011618,2]
[381000578,1755931833410,-240.36618919,0.00011662,2]
[381000580,1755931837831,-136.95774483,0.00011662,2]
[381000581,1755931837841,-171.38,0.000118,2]
[381000582,1755931837851,-166.66,0.00011873,2]
[381000583,1755931837860,-151.0,0.00011981,2]
[381000584,1755931837870,-151.0,0.00011981,2]
[381000585,1755931837879,-282.72308535,0.00012041,2]
[381000586,1755931837889,-3958.00256365,0.00012121,2]
[381000587,1755931837991,-519.62514764,0.00012121,2]
[381000588,1755931838165,-3279.88413488,0.00012121,2]
[381000589,1755931838177,-300.0,0.00012121,2]
[381000591,1755931839802,-368.275518,0.00010329,2]
[381000592,1755931839812,-9144.01924423,0.00012121,2]
[381000593,1755931839822,-301.61,0.00012181,2]
[381000594,1755931839832,-166.66,0.00012265,2]
[381000595,1755931839842,-255.0,0.00012482,2]
[381000596,1755931839853,-287.61899177,0.00012495,2]
[381000597,1755931839862,-204.29660945,0.00012529,2]
[381000598,1755931839871,-151.0,0.00012529,2]
[381000599,1755931839881,-3190.68918224,0.00012605,2]
[381000600,1755931839890,-925.0,0.00012623,2]
[381000601,1755931839900,-1255.0,0.00012623,2]
[381000602,1755931839913,-2030.0,0.00012623,2]
[381000603,1755931839923,-3373.0,0.00012623,2]
[381000604,1755931839933,-599.0,0.00012623,2]
[381000605,1755931839943,-566.0,0.00012623,2]
[381000606,1755931839952,-1298.0,0.00012623,2]
[381000607,1755931839962,-1657.0,0.00012623,2]
[381000608,1755931839971,-6093.0,0.00012623,2]
[381000609,1755931839981,-21510.0,0.00012623,2]
[381000610,1755931839990,-718.0,0.00012623,2]
[381000611,1755931839999,-4153.0,0.00012623,2]
[381000612,1755931840009,-150.0,0.00012623,2]
[381000613,1755931840019,-2351.0,0.00012642,2]
[381000614,1755931840029,-166.66,0.00012657,2]
[381000615,1755931840038,-4850.74221167,0.00012659,2]
[381000616,1755931840050,-7394.44822524,0.00012659,2]
[381000617,1755931840065,-334.5472959,0.00012802,2]
[381000618,1755931840075,-160.0,0.00012802,2]
[381000619,1755931840085,-166.66,0.00013049,2]
[381000620,1755931840095,-222.0,0.000131,2]
[381000621,1755931840105,-171.38,0.00013275,2]
[381000622,1755931840115,-166.66,0.00013441,2]
[381000623,1755931840124,-443.0,0.0001349,2]
[381000624,1755931840134,-259.0,0.00013521,2]
[381000625,1755931840144,-259.0,0.00013523,2]
[381000626,1755931840157,-259.0,0.00013547,2]
[381000627,1755931840167,-259.0,0.00013558,2]
[381000628,1755931840177,-2500.0,0.00013575,2]
[381000629,1755931840187,-259.0,0.00013582,2]
[381000630,1755931840197,-414.14170929,0.00013598,2]
[381000631,1755931840207,-460.52108496,0.00013598,2]
[381000632,1755931840218,-638.70844185,0.00013598,2]
[381000633,1755931840228,-247.7969,0.00013598,2]
[381000634,1755931840239,-1000.0,0.00013598,2]
[381000635,1755931840248,-5000.0,0.00013598,2]
[381000636,1755931840259,-259.0,0.00013608,2]
[381000637,1755931840268,-433.0,0.00013647,2]
[381000638,1755931840278,-259.0,0.00013649,2]
[381000639,1755931840288,-150.0,0.00013684,2]
[381000640,1755931840299,-317.47800243,0.00013685,2]
[381000641,1755931840308,-404.62882662,0.00013685,2]
[381000642,1755931840319,-491.77965082,0.00013686,2]
[381000643,1755931840345,-578.93047502,0.00013686,2]
[381000644,1755931840356,-666.08129921,0.00013686,2]
[381000645,1755931840366,-753.23212341,0.00013687,2]
[381000646,1755931840376,-840.3829476,0.00013687,2]
[381000647,1755931840386,-927.5337718,0.00013688,2]
[381000648,1755931840396,-1014.684596,0.00013688,2]
[381000649,1755931840408,-259.0,0.00013688,2]
[381000650,1755931840418,-155.184,0.00013697,2]
[381000651,1755931840429,-922.95,0.00013698,2]
[381000652,1755931840439,-242.60302649,0.00013698,2]
[381000653,1755931840449,-400.0,0.00013698,2]
[381000654,1755931840459,-433.71,0.00013698,2]
[381000655,1755931840469,-400.0,0.00013698,2]
[381000656,1755931840479,-788.51,0.00013698,2]
[381000657,1755931840489,-532.76,0.00013698,2]
[381000658,1755931840499,-400.0,0.00013698,2]
[381000659,1755931840508,-400.0,0.00013698,2]
[381000660,1755931840518,-400.0,0.00013698,2]
[381000661,1755931840528,-400.0,0.00013698,2]
[381000662,1755931840538,-990.83,0.00013698,2]
[381000663,1755931840548,-400.0,0.00013698,2]
[381000664,1755931840558,-912.45,0.00013698,2]
[381000665,1755931840568,-401.53678618,0.00013698,2]
[381000666,1755931840578,-465.12,0.00013698,2]
[381000667,1755931840588,-400.0,0.00013698,2]
[381000668,1755931840598,-400.0,0.00013698,2]
[381000669,1755931840607,-400.0,0.00013698,2]
[381000670,1755931840620,-402.54686488,0.00013698,2]
[381000671,1755931840630,-400.0,0.00013698,2]
[381000672,1755931840640,-400.0,0.00013698,2]
[381000673,1755931840650,-400.0,0.00013698,2]
[381000674,1755931840661,-400.0,0.00013698,2]
[381000675,1755931840671,-400.0,0.00013698,2]
[381000676,1755931840681,-400.0,0.00013698,2]
[381000677,1755931840693,-400.0,0.00013698,2]
[381000678,1755931840704,-400.0,0.00013698,2]
[381000679,1755931840714,-435.39,0.00013698,2]
[381000680,1755931840724,-400.0,0.00013698,2]
[381000681,1755931840734,-400.0,0.00013698,2]
[381000682,1755931840744,-400.0,0.00013698,2]
[381000683,1755931840754,-400.0,0.00013698,2]
[381000684,1755931840763,-400.0,0.00013698,2]
[381000685,1755931840774,-460.81,0.00013698,2]
[381000686,1755931840784,-400.0,0.00013698,2]
[381000687,1755931840794,-400.0,0.00013698,2]
[381000688,1755931840804,-400.0,0.00013698,2]
[381000689,1755931840817,-400.0,0.00013698,2]
[381000690,1755931840827,-400.0,0.00013698,2]
[381000691,1755931840837,-400.0,0.00013698,2]
[381000692,1755931840847,-400.0,0.00013698,2]
[381000693,1755931840856,-400.0,0.00013698,2]
[381000694,1755931840866,-400.0,0.00013698,2]
[381000695,1755931840876,-400.0,0.00013698,2]
[381000696,1755931840885,-400.0,0.00013698,2]
[381000697,1755931840895,-400.0,0.00013698,2]
[381000698,1755931840905,-400.0,0.00013698,2]
[381000699,1755931840915,-400.0,0.00013698,2]
[381000700,1755931841186,-400.0,0.00013698,2]
[381000701,1755931841221,-400.0,0.00013698,2]
[381000702,1755931841232,-400.0,0.00013698,2]
[381000703,1755931841242,-400.0,0.00013698,2]
[381000704,1755931841252,-400.0,0.00013698,2]
[381000705,1755931841262,-400.0,0.00013698,2]
[381000706,1755931841272,-400.0,0.00013698,2]
[381000707,1755931841281,-400.0,0.00013698,2]
[381000708,1755931841291,-400.0,0.00013698,2]
[381000709,1755931841299,-400.0,0.00013698,2]
[381000710,1755931841311,-400.0,0.00013698,2]
[381000711,1755931841321,-400.0,0.00013698,2]
[381000712,1755931841330,-400.0,0.00013698,2]
[381000713,1755931841340,-400.73582058,0.00013698,2]
[381000714,1755931841349,-470.28,0.00013698,2]
[381000715,1755931841359,-400.0,0.00013698,2]
[381000716,1755931841368,-400.0,0.00013698,2]
[381000717,1755931841378,-1000.0,0.00013698,2]
[381000718,1755931841387,-400.0,0.00013698,2]
[381000719,1755931841397,-400.0,0.00013698,2]
[381000720,1755931841411,-400.0,0.00013698,2]
[381000721,1755931841420,-506.53,0.00013698,2]
[381000722,1755931841430,-400.0,0.00013698,2]
[381000723,1755931841443,-471.89,0.00013698,2]
[381000724,1755931841461,-400.0,0.00013698,2]
[381000725,1755931841471,-414.85,0.00013698,2]
[381000726,1755931841481,-400.0,0.00013698,2]
[381000727,1755931841491,-400.0,0.00013698,2]
[381000728,1755931841503,-400.0,0.00013698,2]
[381000729,1755931841513,-400.0,0.00013698,2]
[381000730,1755931841523,-588.35,0.00013698,2]
[381000731,1755931841533,-199.60973476,0.00013698,2]
[381000732,1755931841542,-490.76,0.00013698,2]
[381000733,1755931841552,-466.35,0.00013698,2]
[381000734,1755931841561,-400.0,0.00013698,2]
[381000735,1755931841570,-400.0,0.00013698,2]
[381000736,1755931841580,-938.24,0.00013698,2]
[381000737,1755931841590,-400.0,0.00013698,2]
[381000738,1755931841599,-400.0,0.00013698,2]
[381000739,1755931841610,-401.11983793,0.00013698,2]
[381000740,1755931841622,-400.0,0.00013698,2]
[381000741,1755931841631,-400.0,0.00013698,2]
[381000742,1755931841642,-400.0,0.00013698,2]
[381000743,1755931841651,-472.65,0.00013698,2]
[381000744,1755931841662,-669.69,0.00013698,2]
[381000745,1755931841672,-400.0,0.00013698,2]
[381000746,1755931841682,-572.36,0.00013698,2]
[381000747,1755931841694,-400.0,0.00013698,2]
[381000748,1755931841703,-400.0,0.00013698,2]
[381000749,1755931841713,-400.0,0.00013698,2]
[381000750,1755931841723,-400.0,0.00013698,2]
[381000751,1755931841733,-400.0,0.00013698,2]
[381000752,1755931841742,-400.0,0.00013698,2]
[381000753,1755931841751,-400.0,0.00013698,2]
[381000754,1755931841761,-400.0,0.00013698,2]
[381000755,1755931841771,-400.0,0.00013698,2]
[381000756,1755931841780,-400.0,0.00013698,2]
[381000757,1755931841790,-400.0,0.00013698,2]
[381000758,1755931841799,-400.0,0.00013698,2]
[381000759,1755931841809,-400.0,0.00013698,2]
[381000760,1755931841818,-401.36913267,0.00013698,2]
[381000761,1755931841827,-400.0,0.00013698,2]
[381000762,1755931841837,-400.0,0.00013698,2]
[381000763,1755931841846,-400.0,0.00013698,2]
[381000764,1755931841855,-400.0,0.00013698,2]
[381000765,1755931841866,-400.0,0.00013698,2]
[381000766,1755931841876,-400.0,0.00013698,2]
[381000767,1755931841885,-400.0,0.00013698,2]
[381000768,1755931841895,-451.87,0.00013698,2]
[381000769,1755931841904,-400.0,0.00013698,2]
[381000770,1755931841914,-400.0,0.00013698,2]
[381000771,1755931841924,-545.47,0.00013698,2]
[381000772,1755931841933,-400.0,0.00013698,2]
[381000773,1755931841943,-550.96,0.00013698,2]
[381000774,1755931841953,-400.0,0.00013698,2]
[381000775,1755931841962,-400.0,0.00013698,2]
[381000776,1755931841972,-400.0,0.00013698,2]
[381000777,1755931841981,-400.0,0.00013698,2]
[381000778,1755931841991,-400.0,0.00013698,2]
[381000779,1755931842001,-400.0,0.00013698,2]
[381000780,1755931842011,-400.0,0.00013698,2]
[381000781,1755931842021,-400.0,0.00013698,2]
[381000782,1755931842030,-400.0,0.00013698,2]
[381000783,1755931842040,-558.8,0.00013698,2]
[381000784,1755931842050,-400.0,0.00013698,2]
[381000785,1755931842059,-400.0,0.00013698,2]
[381000786,1755931842069,-400.0,0.00013698,2]
[381000787,1755931842078,-384.6946944,0.00013698,2]
[381000788,1755931842088,-430.86,0.00013698,2]
[381000789,1755931842098,-400.0,0.00013698,2]
[381000790,1755931842112,-400.0,0.00013698,2]
[381000791,1755931842122,-400.0,0.00013698,2]
[381000792,1755931842133,-400.0,0.00013698,2]
[381000793,1755931842143,-400.0,0.00013698,2]
[381000794,1755931842152,-400.0,0.00013698,2]
[381000795,1755931842162,-400.0,0.00013698,2]
[381000796,1755931842172,-400.0,0.00013698,2]
[381000797,1755931842182,-400.0,0.00013698,2]
[381000798,1755931842193,-400.0,0.00013698,2]
[381000799,1755931842203,-400.0,0.00013698,2]
[381000800,1755931842214,-400.0,0.00013698,2]
[381000801,1755931842227,-400.0,0.00013698,2]
[381000802,1755931842238,-400.0,0.00013698,2]
[381000803,1755931842248,-400.0,0.00013698,2]
[381000804,1755931842257,-566.81,0.00013698,2]
[381000805,1755931842267,-415.04,0.00013698,2]
[381000806,1755931842276,-400.0,0.00013698,2]
[381000807,1755931842285,-400.0,0.00013698,2]
[381000808,1755931842295,-400.0,0.00013698,2]
[381000809,1755931842305,-400.0,0.00013698,2]
[381000810,1755931842314,-398.36217642,0.00013698,2]
[381000811,1755931842324,-400.0,0.00013698,2]
[381000812,1755931842334,-400.0,0.00013698,2]
[381000813,1755931842343,-400.0,0.00013698,2]
[381000814,1755931842352,-400.0,0.00013698,2]
[381000815,1755931842362,-402.1349608,0.00013698,2]
[381000816,1755931842371,-400.0,0.00013698,2]
[381000817,1755931842381,-400.0,0.00013698,2]
[381000818,1755931842391,-400.0,0.00013698,2]
[381000819,1755931842401,-400.0,0.00013698,2]
[381000820,1755931842411,-400.0,0.00013698,2]
[381000821,1755931842421,-447.05352797,0.00013698,2]
[381000822,1755931843067,-17.66647203,0.00013698,2]
[381000823,1755931843077,-415.32,0.00013698,2]
[381000824,1755931843087,-400.0,0.00013698,2]
[381000825,1755931843097,-453.33,0.00013698,2]
[381000826,1755931843107,-402.24,0.00013698,2]
[381000827,1755931843116,-400.0,0.00013698,2]
[381000828,1755931843125,-577.59,0.00013698,2]
[381000829,1755931843135,-400.0,0.00013698,2]
[381000830,1755931843144,-400.0,0.00013698,2]
[381000831,1755931843154,-400.0,0.00013698,2]
[381000832,1755931843164,-400.0,0.00013698,2]
[381000833,1755931843174,-400.0,0.00013698,2]
[381000834,1755931843183,-416.84,0.00013698,2]
[381000835,1755931843193,-400.0,0.00013698,2]
[381000836,1755931843203,-400.0,0.00013698,2]
[381000837,1755931843213,-620.59,0.00013698,2]
[381000838,1755931843222,-400.0,0.00013698,2]
[381000839,1755931843231,-400.0,0.00013698,2]
[381000840,1755931843241,-400.0,0.00013698,2]
[381000841,1755931843251,-400.0,0.00013698,2]
[381000842,1755931843260,-481.25,0.00013698,2]
[381000843,1755931843270,-400.0,0.00013698,2]
[381000844,1755931843279,-400.0,0.00013698,2]
[381000845,1755931843289,-400.0,0.00013698,2]
[381000846,1755931843299,-400.0,0.00013698,2]
[381000848,1755931843308,-400.0,0.00013698,2]
[381000850,1755931843318,-400.0,0.00013698,2]
[381000851,1755931843327,-400.0,0.00013698,2]
[381000852,1755931843336,-400.0,0.00013698,2]
[381000853,1755931843346,-448.15,0.00013698,2]
[381000854,1755931843355,-400.0,0.00013698,2]
[381000855,1755931843365,-400.0,0.00013698,2]
[381000856,1755931843374,-400.0,0.00013698,2]
[381000857,1755931843383,-400.0,0.00013698,2]
[381000858,1755931843393,-479.23,0.00013698,2]
[381000859,1755931843403,-766.76,0.00013698,2]
[381000860,1755931843412,-400.0,0.00013698,2]
[381000861,1755931843422,-517.32,0.00013698,2]
[381000862,1755931843432,-400.0,0.00013698,2]
[381000863,1755931843521,-400.0,0.00013698,2]
[381000864,1755931843530,-400.0,0.00013698,2]
[381000865,1755931843539,-400.0,0.00013698,2]
[381000866,1755931843549,-400.0,0.00013698,2]
[381000867,1755931843558,-400.0,0.00013698,2]
[381000868,1755931843568,-400.0,0.00013698,2]
[381000869,1755931843577,-400.0,0.00013698,2]